fUST/lending_fUST_20250717
["ID","MTS","AMOUNT","RATE_DAILY","PERIOD"]
[372651593,1752733863489,-292.78179,0.00019989,2]
[372651594,1752733863504,-292.78179,0.00019989,2]
[372651595,1752733863519,-292.78179,0.00019989,2]
[372651596,1752733863535,-292.781797,0.00019989,2]
[372651597,1752733863550,-151.0,0.00019989,2]
[372651598,1752733863565,-33700.38015231,0.00019989,2]
[372651599,1752733863583,-150000.0,0.00019989,2]
[372651600,1752733863599,-3000.0,0.00019995,2]
[372651601,1752733863615,-151.28927516,0.0002,2]
[372651602,1752733863631,-3546.5465558,0.0002,20]
[372651603,1752733863647,-1293.99017771,0.0002,5]
[372651604,1752733863663,-307.0,0.0002,2]
[372651605,1752733863771,-14300.23978458,0.0002,2]
[372651606,1752733863782,-8177.78727445,0.0002,2]
[372651607,1752733863792,-3192.46667398,0.0002,2]
[372651608,1752733863802,-362.48737256,0.0002,2]
[372651609,1752733863812,-408.33913571,0.0002,5]
[372651610,1752733863825,-11225.94614595,0.0002,2]
[372651611,1752733863835,-160.0,0.0002,3]
[372651612,1752733863844,-14654.56689581,0.0002,2]
[372651613,1752733863854,-478.14306,0.0002,2]
[372651614,1752733863864,-478.14306,0.0002,2]
[372651615,1752733863873,-151.0,0.0002,2]
[372651616,1752733863883,-151.0,0.0002,2]
[372651617,1752733863893,-277.94659,0.0002,2]
[372651618,1752733863903,-151.0,0.0002,2]
[372651619,1752733863913,-151.0,0.0002,2]
[372651620,1752733863923,-488.759505,0.0002,2]
[372651621,1752733863943,-488.759512,0.0002,2]
[372651622,1752733863954,-151.0,0.0002,2]
[372651623,1752733863965,-351.592733,0.0002,2]
[372651624,1752733863975,-351.592732,0.0002,2]
[372651625,1752733863985,-173.461,0.0002,2]
[372651626,1752733863996,-173.372,0.0002,2]
[372651627,1752733864007,-300.0,0.0002,2]
[372651628,1752733864017,-60134.19631449,0.0002,2]
[372651629,1752733864028,-160.0,0.0002,7]
[372651630,1752733864038,-4000.0,0.0002,4]
[372651631,1752733864049,-168.0,0.00020006,2]
[372651632,1752733864059,-2000.0,0.00020016,2]
[372651633,1752733864070,-2000.0,0.00020016,2]
[372651634,1752733864083,-1000.0,0.00020021,2]
[372651635,1752733864093,-1000.0,0.00020021,2]
[372651636,1752733864103,-1000.0,0.00020021,2]
[372651637,1752733864114,-1000.0,0.00020021,2]
[372651638,1752733864124,-1000.0,0.00020021,2]
[372651639,1752733864134,-1000.0,0.00020021,2]
[372651640,1752733864144,-1000.0,0.00020021,2]
[372651641,1752733864155,-1074.65458591,0.00020021,2]
[372651642,1752733864165,-1000.0,0.00020021,2]
[372651643,1752733864175,-1000.0,0.00020021,2]
[372651644,1752733864186,-1000.0,0.00020021,2]
[372651645,1752733864196,-500.0,0.00020021,2]
[372651646,1752733864206,-1000.0,0.00020021,2]
[372651647,1752733864217,-1000.0,0.00020021,2]
[372651648,1752733864226,-1000.0,0.00020021,2]
[372651649,1752733864237,-1000.0,0.00020021,2]
[372651650,1752733864247,-1000.0,0.00020021,2]
[372651651,1752733864257,-425.12574074,0.00020021,2]
[372651652,1752733864267,-500.0,0.00020021,2]
[372651653,1752733864278,-1000.0,0.00020021,2]
[372651654,1752733864288,-1000.0,0.00020021,2]
[372651655,1752733864298,-1000.0,0.00020021,2]
[372651656,1752733864308,-1000.0,0.00020021,2]
[372651657,1752733864319,-1000.0,0.00020021,2]
[372651659,1752733864331,-1000.0,0.00020021,2]
[372651660,1752733864341,-1000.0,0.00020021,2]
[372651661,1752733864351,-1000.0,0.00020021,2]
[372651662,1752733864362,-848.63922981,0.00020021,2]
[372651663,1752733864372,-1000.0,0.00020021,2]
[372651664,1752733864383,-1003.77600688,0.00020021,2]
[372651665,1752733864393,-1000.0,0.00020021,2]
[372651666,1752733864403,-1000.0,0.00020021,2]
[372651667,1752733864412,-1000.0,0.00020021,2]
[372651668,1752733864422,-501.97479051,0.00020021,2]
[372651669,1752733864432,-1000.0,0.00020021,2]
[372651670,1752733864443,-454.50000455,0.00020034,4]
[372651671,1752733864453,-460.0,0.00020049,2]
[372651672,1752733864463,-460.0,0.00020049,2]
[372651673,1752733864474,-4140.04,0.00020049,2]
[372651674,1752733864484,-932.79,0.00020049,2]
[372651675,1752733864494,-540.39,0.00020049,2]
[372651676,1752733864504,-2892.45,0.00020049,2]
[372651677,1752733864514,-460.0,0.00020049,2]
[372651678,1752733864523,-2151.51,0.00020049,2]
[372651679,1752733864533,-727.28,0.00020049,2]
[372651680,1752733864544,-460.0,0.0002005,2]
[372651681,1752733864553,-367.52,0.0002005,2]
[372651682,1752733864563,-460.0,0.00020051,2]
[372651683,1752733864575,-460.0,0.00020051,2]
[372651684,1752733864585,-631.04,0.00020051,2]
[372651685,1752733864595,-460.0,0.00020051,2]
[372651686,1752733864605,-460.0,0.00020051,2]
[372651687,1752733864614,-1599.14,0.00020051,2]
[372651688,1752733864624,-460.0,0.00020051,2]
[372651689,1752733864634,-218.67,0.00020051,2]
[372651690,1752733864644,-613.34,0.00020051,2]
[372651691,1752733864655,-619.55,0.00020051,2]
[372651692,1752733864667,-1158.0,0.00020051,2]
[372651693,1752733864677,-460.0,0.00020051,2]
[372651694,1752733864687,-693.25,0.00020051,2]
[372651695,1752733864697,-460.0,0.00020051,2]
[372651696,1752733864707,-460.0,0.00020051,2]
[372651697,1752733864717,-1194.0,0.00020053,2]
[372651698,1752733864727,-1100.0,0.00020053,2]
[372651699,1752733864738,-460.0,0.00020053,2]
[372651700,1752733864752,-460.0,0.00020053,2]
[372651701,1752733864764,-460.0,0.00020053,2]
[372651702,1752733864774,-460.0,0.00020053,2]
[372651703,1752733864783,-847.53,0.00020053,2]
[372651704,1752733864793,-692.39,0.00020053,2]
[372651705,1752733864803,-460.0,0.00020053,2]
[372651706,1752733864813,-546.11,0.00020053,2]
[372651707,1752733864824,-460.0,0.00020053,2]
[372651708,1752733864833,-3583.74,0.00020053,2]
[372651709,1752733864844,-460.0,0.00020054,2]
[372651710,1752733864854,-168.0,0.00020058,2]
[372651711,1752733864863,-155.74075,0.00020067,2]
[372651712,1752733864873,-4236.58079702,0.00020071,2]
[372651713,1752733864883,-14022.27863138,0.00020141,2]
[372651714,1752733864893,-2000.0,0.00020172,2]
[372651715,1752733864903,-891.47993527,0.0002018,2]
[372651716,1752733864913,-241.539436,0.00020187,2]
[372651717,1752733864923,-454.50000455,0.00020223,4]
[372651718,1752733864933,-460.0,0.00020224,2]
[372651719,1752733864943,-460.0,0.00020224,2]
[372651720,1752733864952,-460.0,0.00020224,2]
[372651721,1752733864962,-486.72,0.00020224,2]
[372651722,1752733864972,-530.92,0.00020224,2]
[372651723,1752733864982,-587.58,0.00020224,2]
[372651724,1752733864992,-460.0,0.00020224,2]
[372651725,1752733865101,-598.69,0.00020224,2]
[372651726,1752733865112,-672.11,0.00020224,2]
[372651727,1752733865121,-460.0,0.00020224,2]
[372651728,1752733865131,-602.16,0.00020224,2]
[372651729,1752733865141,-460.0,0.00020224,2]
[372651730,1752733865150,-460.0,0.00020224,2]
[372651731,1752733865160,-5674.72,0.00020224,2]
[372651732,1752733865169,-394.46120507,0.00020224,2]
[372651733,1752733865178,-460.0,0.00020224,2]
[372651734,1752733865188,-460.0,0.00020224,2]
[372651735,1752733865198,-460.0,0.00020224,2]
[372651736,1752733865207,-460.0,0.00020224,2]
[372651737,1752733865217,-480.30356035,0.00020224,2]
[372651738,1752733865227,-460.0,0.00020224,2]
[372651739,1752733865236,-2305.95,0.00020224,2]
[372651740,1752733865246,-4193.99,0.00020224,2]
[372651741,1752733865255,-710.08,0.00020224,2]
[372651742,1752733865264,-460.0,0.00020224,2]
[372651743,1752733865274,-460.0,0.00020224,2]
[372651744,1752733865283,-460.0,0.00020224,2]
[372651745,1752733865292,-460.0,0.00020224,2]
[372651746,1752733865302,-1286.69,0.00020224,2]
[372651747,1752733865312,-2289.29,0.00020224,2]
[372651748,1752733865324,-578.23170341,0.00020224,2]
[372651749,1752733865334,-168.0,0.00020225,2]
[372651750,1752733865344,-500.0,0.00020227,2]
[372651751,1752733865354,-460.0,0.00020227,2]
[372651752,1752733865363,-460.0,0.00020227,2]
[372651753,1752733865374,-1737.46,0.00020227,2]
[372651754,1752733865384,-2090.97,0.00020227,2]
[372651755,1752733865393,-899.49,0.00020227,2]
[372651756,1752733865403,-2579.09,0.00020227,2]
[372651757,1752733865413,-642.73,0.00020227,2]
[372651758,1752733865423,-460.0,0.00020228,2]
[372651759,1752733865433,-460.0,0.00020228,2]
[372651760,1752733865443,-460.0,0.00020228,2]
[372651761,1752733865452,-674.33,0.00020228,2]
[372651762,1752733865461,-460.0,0.00020228,2]
[372651763,1752733865471,-460.0,0.00020228,2]
[372651764,1752733865481,-582.41255191,0.00020228,2]
[372651765,1752733865491,-478.14306,0.00020275,2]
[372651766,1752733865500,-478.14306,0.00020275,2]
[372651767,1752733865510,-12607.95677342,0.000203,3]
[372651768,1752733865520,-214.44804168,0.000203,3]
[372651769,1752733865530,-476.16111942,0.000203,3]
[372651770,1752733865539,-160.0,0.000203,3]
[372651771,1752733865549,-168.0,0.00020311,2]
[372651772,1752733865559,-1000.0,0.00020321,2]
[372651773,1752733865569,-503.52444387,0.00020321,2]
[372651774,1752733865580,-501.55540083,0.00020321,2]
[372651775,1752733865590,-1002.67469553,0.00020321,2]
[372651776,1752733865599,-1000.0,0.00020321,2]
[372651777,1752733865611,-1000.0,0.00020321,2]
[372651778,1752733865621,-1000.0,0.00020321,2]
[372651779,1752733865631,-1000.0,0.00020321,2]
[372651780,1752733865640,-1006.43229855,0.00020321,2]
[372651781,1752733865649,-1001.37630859,0.00020321,2]
[372651782,1752733865659,-1000.0,0.00020321,2]
[372651783,1752733865668,-1000.0,0.00020321,2]
[372651784,1752733865677,-283.90530965,0.00020321,2]
[372651785,1752733865687,-1000.0,0.00020321,2]
[372651786,1752733865697,-1000.0,0.00020321,2]
[372651787,1752733865707,-460.0,0.00020323,2]
[372651788,1752733865716,-190.28,0.00020323,2]
[372651789,1752733865726,-4140.04,0.00020323,2]
[372651790,1752733865736,-932.79,0.00020323,2]
[372651791,1752733865747,-540.39,0.00020323,2]
[372651792,1752733865757,-2892.45,0.00020323,2]
[372651793,1752733865766,-460.0,0.00020323,2]
[372651794,1752733865777,-2151.51,0.00020323,2]
[372651795,1752733865787,-727.28,0.00020323,2]
[372651796,1752733865797,-460.0,0.00020325,2]
[372651797,1752733865807,-460.0,0.00020325,2]
[372651798,1752733865816,-631.04,0.00020325,2]
[372651799,1752733865829,-460.0,0.00020325,2]
[372651800,1752733865839,-460.0,0.00020325,2]
[372651801,1752733865849,-1599.14,0.00020325,2]
[372651802,1752733865858,-460.0,0.00020325,2]
[372651803,1752733865868,-613.34,0.00020325,2]
[372651804,1752733865877,-619.55,0.00020325,2]
[372651805,1752733865888,-1158.0,0.00020325,2]
[372651806,1752733865897,-460.0,0.00020325,2]
[372651807,1752733865907,-693.25,0.00020325,2]
[372651808,1752733865918,-588.50384396,0.00020325,2]
[372651809,1752733865927,-460.0,0.00020325,2]
[372651810,1752733865938,-1194.0,0.00020327,2]
[372651811,1752733865947,-1100.0,0.00020327,2]
[372651812,1752733865957,-460.0,0.00020327,2]
[372651813,1752733865966,-460.0,0.00020327,2]
[372651814,1752733865975,-847.53,0.00020327,2]
[372651815,1752733865985,-692.39,0.00020327,2]
[372651816,1752733865995,-460.0,0.00020327,2]
[372651817,1752733866004,-546.11,0.00020327,2]
[372651818,1752733866013,-460.0,0.00020327,2]
[372651819,1752733866023,-3583.74,0.00020327,2]
[372651820,1752733866032,-460.0,0.00020328,2]
[372651821,1752733866042,-189.179463,0.00020329,2]
[372651822,1752733866052,-151.0,0.00020329,2]
[372651823,1752733866061,-776.858263,0.00020332,7]
[372651824,1752733866071,-151.0,0.00020333,2]
[372651825,1752733866084,-151.0,0.00020334,2]
[372651826,1752733866093,-715.92829431,0.00020338,5]
[372651827,1752733866103,-2500.0,0.00020364,2]
[372651828,1752733866114,-2159.98269423,0.00020383,3]
[372651829,1752733866305,-3040.88060319,0.00020383,3]
[372651830,1752733866405,-412.41609684,0.00018036,2]
[372651831,1752733866415,-660.68,0.00018135,2]
[372651832,1752733866424,-151.71875615,0.00018407,2]
[372651833,1752733866434,-660.68,0.00018409,2]
[372651834,1752733866444,-660.68,0.00018683,2]
[372651835,1752733866454,-1073.34,0.00018957,2]
[372651836,1752733866463,-660.68,0.00018957,2]
[372651837,1752733866473,-1073.34,0.00019231,2]
[372651838,1752733866483,-660.68,0.00019231,2]
[372651840,1752733866493,-1073.34,0.00019505,2]
[372651841,1752733866503,-660.68,0.00019505,2]
[372651842,1752733866513,-660.68,0.00019779,2]
[372651843,1752733866523,-8821.41533396,0.00020383,3]
[372651844,1752733866533,-159.7589233,0.00020401,2]
[372651845,1752733866543,-178.0216189,0.00020401,2]
[372651846,1752733866553,-178.0216189,0.00020401,2]
[372651847,1752733866563,-454.50000455,0.00020412,4]
[372651848,1752733866574,-478.14306,0.00020414,2]
[372651849,1752733866584,-478.14306,0.00020414,2]
[372651850,1752733866594,-360.0,0.00020432,2]
[372651851,1752733866603,-779.0,0.00020433,2]
[372651852,1752733866613,-460.0,0.00020498,2]
[372651853,1752733866623,-460.0,0.00020498,2]
[372651854,1752733866632,-460.0,0.00020498,2]
[372651855,1752733866642,-486.72,0.00020498,2]
[372651856,1752733866651,-530.92,0.00020498,2]
[372651857,1752733866661,-587.58,0.00020498,2]
[372651858,1752733866671,-460.0,0.00020498,2]
[372651859,1752733866681,-598.69,0.00020498,2]
[372651860,1752733866692,-672.11,0.00020498,2]
[372651861,1752733866701,-460.0,0.00020498,2]
[372651862,1752733866710,-460.0,0.00020498,2]
[372651863,1752733866720,-1466.53825741,0.00020498,2]
[372651864,1752733866732,-4208.18174259,0.00020498,2]
[372651865,1752733866743,-460.0,0.00020498,2]
[372651866,1752733866755,-460.0,0.00020498,2]
[372651867,1752733866764,-460.0,0.00020498,2]
[372651868,1752733866775,-460.0,0.00020498,2]
[372651869,1752733866786,-2305.95,0.00020498,2]
[372651870,1752733866797,-4193.99,0.00020498,2]
[372651871,1752733866806,-710.08,0.00020498,2]
[372651872,1752733866816,-460.0,0.00020498,2]
[372651873,1752733866829,-518.00706673,0.00020498,2]
[372651874,1752733866839,-460.0,0.00020498,2]
[372651875,1752733866849,-1286.69,0.00020498,2]
[372651876,1752733866859,-2289.29,0.00020498,2]
[372651877,1752733866869,-500.0,0.00020501,2]
[372651878,1752733866879,-460.0,0.00020501,2]
[372651879,1752733866888,-460.0,0.00020501,2]
[372651880,1752733866898,-1737.46,0.00020501,2]
[372651881,1752733866909,-2090.97,0.00020501,2]
[372651882,1752733866919,-899.49,0.00020501,2]
[372651883,1752733866928,-2579.09,0.00020501,2]
[372651884,1752733866937,-642.73,0.00020501,2]
[372651885,1752733866947,-460.0,0.00020502,2]
[372651886,1752733866956,-460.0,0.00020502,2]
[372651887,1752733866966,-460.0,0.00020502,2]
[372651888,1752733866976,-674.33,0.00020502,2]
[372651889,1752733866988,-460.0,0.00020502,2]
[372651890,1752733866999,-460.0,0.00020502,2]
[372651891,1752733867009,-160.0,0.0002051,3]
[372651892,1752733867018,-1000.0,0.00020521,2]
[372651893,1752733867027,-852.71588752,0.00020521,2]
[372651894,1752733867036,-1000.0,0.00020521,2]
[372651895,1752733867046,-1000.0,0.00020521,2]
[372651896,1752733867056,-1000.0,0.00020521,2]
[372651897,1752733867065,-278.54216134,0.00020521,2]
[372651898,1752733867079,-3000.0,0.0002055,2]
[372651899,1752733867088,-429.0212778,0.00020555,2]
[372651900,1752733867098,-429.0948676,0.00020555,2]
[372651901,1752733867107,-429.2412091,0.00020555,2]
[372651902,1752733867117,-429.2412091,0.00020555,2]
[372651903,1752733867130,-429.2412091,0.00020555,2]
[372651904,1752733867140,-428.6558431,0.00020555,2]
[372651905,1752733867149,-2500.0,0.00020564,2]
[372651906,1752733867160,-2500.0,0.00020564,2]
[372651907,1752733867170,-1500.0,0.00020568,2]
[372651908,1752733867180,-1500.0,0.00020568,2]
[372651909,1752733867190,-1500.0,0.00020568,2]
[372651910,1752733867200,-1500.0,0.00020568,2]
[372651911,1752733867209,-1500.0,0.00020568,2]
[372651912,1752733867219,-904.29614338,0.00020568,2]
[372651913,1752733867228,-1500.0,0.00020568,2]
[372651914,1752733867238,-1500.0,0.00020568,2]
[372651915,1752733867248,-503.29160989,0.00020568,2]
[372651916,1752733867258,-1500.0,0.00020568,2]
[372651917,1752733867268,-1500.0,0.00020568,2]
[372651918,1752733867278,-1627.01295953,0.00020568,2]
[372651919,1752733867288,-1016.01932147,0.00020568,2]
[372651920,1752733867298,-1500.0,0.00020568,2]
[372651921,1752733867309,-1500.0,0.00020568,2]
[372651922,1752733867319,-992.20837063,0.00020568,2]
[372651923,1752733867332,-556.83794561,0.00020568,2]
[372651924,1752733867342,-1500.0,0.00020568,2]
[372651925,1752733867352,-1500.0,0.00020568,2]
[372651926,1752733867362,-1500.0,0.00020568,2]
[372651927,1752733867372,-1500.0,0.00020568,2]
[372651928,1752733867382,-1500.0,0.00020568,2]
[372651929,1752733867391,-1500.0,0.00020568,2]
[372651930,1752733867402,-1500.0,0.00020568,2]
[372651931,1752733867412,-503.74379031,0.00020568,2]
[372651932,1752733867422,-502.38358372,0.00020568,2]
[372651933,1752733867431,-1500.0,0.00020568,2]
[372651934,1752733867441,-1513.70983254,0.00020568,2]
[372651935,1752733867451,-4140.04,0.00020597,2]
[372651936,1752733867461,-932.79,0.00020597,2]
[372651937,1752733867471,-540.39,0.00020597,2]
[372651938,1752733867480,-1381.68266464,0.00020597,2]
[372651939,1752733867494,-916.77407425,0.00020597,2]
[372651940,1752733867505,-481.76566463,0.00020597,2]
[372651941,1752733867632,-151.0,0.00018133,2]
[372651942,1752733867642,-460.0,0.00018133,2]
[372651943,1752733867651,-478.04,0.00018407,2]
[372651944,1752733867662,-660.68,0.00020053,2]
[372651945,1752733867672,-660.68,0.00020327,2]
[372651946,1752733867682,-112.22759648,0.00020597,2]
[372651947,1752733867692,-460.0,0.00020597,2]
[372651948,1752733867701,-2151.51,0.00020597,2]
[372651949,1752733867711,-727.28,0.00020597,2]
[372651950,1752733867721,-460.0,0.00020598,2]
[372651951,1752733867730,-460.0,0.00020599,2]
[372651952,1752733867740,-631.04,0.00020599,2]
[372651953,1752733867753,-460.0,0.00020599,2]
[372651954,1752733867763,-460.0,0.00020599,2]
[372651955,1752733867772,-1599.14,0.00020599,2]
[372651956,1752733867782,-460.0,0.00020599,2]
[372651957,1752733867792,-613.34,0.00020599,2]
[372651958,1752733867802,-619.55,0.00020599,2]
[372651959,1752733867812,-1158.0,0.00020599,2]
[372651960,1752733867823,-460.0,0.00020599,2]
[372651961,1752733867833,-693.25,0.00020599,2]
[372651962,1752733867843,-460.0,0.00020599,2]
[372651963,1752733867853,-1194.0,0.00020601,2]
[372651964,1752733867864,-1100.0,0.00020601,2]
[372651965,1752733867873,-219.50755186,0.00020601,2]
[372651966,1752733867883,-460.0,0.00020601,2]
[372651967,1752733867893,-847.53,0.00020601,2]
[372651968,1752733867903,-454.50000455,0.00020601,4]
[372651969,1752733867913,-692.39,0.00020601,2]
[372651970,1752733867924,-460.0,0.00020601,2]
[372651971,1752733867934,-546.11,0.00020601,2]
[372651972,1752733867943,-460.0,0.00020601,2]
[372651973,1752733867953,-3583.74,0.00020601,2]
[372651974,1752733867963,-660.68,0.00020601,2]
[372651975,1752733867973,-460.0,0.00020602,2]
[372651976,1752733867983,-151.0,0.00020607,2]
[372651977,1752733867993,-151.0,0.00020607,2]
[372651978,1752733868004,-160.0,0.0002062,4]
[372651979,1752733868013,-151.0,0.00020624,2]
[372651980,1752733868024,-14022.27863138,0.00020624,3]
[372651981,1752733868033,-501.05427893,0.00020692,2]
[372651982,1752733868043,-500.0,0.00020692,2]
[372651983,1752733868053,-1875.35,0.0002071,20]
[372651984,1752733868063,-168.0,0.00020717,2]
[372651985,1752733868073,-2500.0,0.0002072,2]
[372651986,1752733868083,-160.0,0.00020729,5]
[372651987,1752733868093,-460.0,0.00020772,2]
[372651988,1752733868103,-460.0,0.00020772,2]
[372651989,1752733868112,-460.0,0.00020772,2]
[372651990,1752733868122,-486.72,0.00020772,2]
[372651991,1752733868132,-530.92,0.00020772,2]
[372651992,1752733868141,-587.58,0.00020772,2]
[372651993,1752733868152,-460.0,0.00020772,2]
[372651994,1752733868162,-598.69,0.00020772,2]
[372651995,1752733868173,-672.11,0.00020772,2]
[372651996,1752733868183,-460.0,0.00020772,2]
[372651997,1752733868194,-5674.72,0.00020772,2]
[372651998,1752733868204,-460.0,0.00020772,2]
[372651999,1752733868214,-460.0,0.00020772,2]
[372652000,1752733868224,-193.14917578,0.00020772,2]
[372652001,1752733868234,-460.0,0.00020772,2]
[372652002,1752733868243,-2305.95,0.00020772,2]
[372652003,1752733868253,-4193.99,0.00020772,2]
[372652004,1752733868263,-710.08,0.00020772,2]
[372652005,1752733868272,-460.0,0.00020772,2]
[372652006,1752733868282,-460.0,0.00020772,2]
[372652007,1752733868293,-1286.69,0.00020772,2]
[372652008,1752733868303,-2289.29,0.00020772,2]
[372652009,1752733868312,-500.0,0.00020775,2]
[372652010,1752733868322,-460.0,0.00020775,2]
[372652011,1752733868332,-460.0,0.00020775,2]
[372652012,1752733868343,-1737.46,0.00020775,2]
[372652013,1752733868353,-2090.97,0.00020775,2]
[372652014,1752733868363,-899.49,0.00020775,2]
[372652015,1752733868373,-2579.09,0.00020775,2]
[372652016,1752733868382,-642.73,0.00020775,2]
[372652017,1752733868393,-460.0,0.00020776,2]
[372652018,1752733868403,-460.0,0.00020776,2]
[372652019,1752733868413,-674.33,0.00020776,2]
[372652020,1752733868422,-460.0,0.00020776,2]
[372652021,1752733868432,-460.0,0.00020776,2]
[372652022,1752733868442,-197.24977988,0.00020779,2]
[372652023,1752733868451,-4236.58079702,0.00020792,2]
[372652024,1752733868461,-160.0,0.00020838,6]
[372652025,1752733868471,-14022.27863138,0.00020866,4]
[372652026,1752733868480,-510.92618867,0.00020868,2]
[372652027,1752733868490,-1305.89446758,0.00020868,2]
[372652028,1752733868500,-1500.0,0.00020868,2]
[372652029,1752733868510,-1500.0,0.00020868,2]
[372652030,1752733868520,-1001.63333193,0.00020868,2]
[372652031,1752733868530,-504.2372614,0.00020868,2]
[372652032,1752733868541,-1500.0,0.00020868,2]
[372652033,1752733868551,-1500.0,0.00020868,2]
[372652034,1752733868561,-619.97449558,0.00020868,2]
[372652035,1752733868570,-4140.04,0.00020871,2]
[372652036,1752733868581,-932.79,0.00020871,2]
[372652037,1752733868591,-540.39,0.00020871,2]
[372652038,1752733868601,-2892.45,0.00020871,2]
[372652039,1752733868611,-460.0,0.00020871,2]
[372652040,1752733868621,-2151.51,0.00020871,2]
[372652041,1752733868631,-727.28,0.00020871,2]
[372652042,1752733868641,-343.49081288,0.00020872,2]
[372652043,1752733868651,-460.0,0.00020873,2]
[372652044,1752733868660,-631.04,0.00020873,2]
[372652045,1752733868671,-460.0,0.00020873,2]
[372652046,1752733868681,-460.0,0.00020873,2]
[372652047,1752733868690,-1599.14,0.00020873,2]
[372652048,1752733868700,-460.0,0.00020873,2]
[372652049,1752733868710,-613.34,0.00020873,2]
[372652050,1752733868720,-619.55,0.00020873,2]
[372652051,1752733868729,-1158.0,0.00020873,2]
[372652052,1752733868740,-460.0,0.00020873,2]
[372652053,1752733868753,-693.25,0.00020873,2]
[372652054,1752733868763,-460.0,0.00020873,2]
[372652055,1752733868773,-1194.0,0.00020875,2]
[372652056,1752733868783,-1100.0,0.00020875,2]
[372652057,1752733868901,-460.0,0.00020875,2]
[372652058,1752733868911,-847.53,0.00020875,2]
[372652059,1752733868921,-692.39,0.00020875,2]
[372652060,1752733868931,-546.11,0.00020875,2]
[372652061,1752733868940,-460.0,0.00020875,2]
[372652062,1752733868949,-3583.74,0.00020875,2]
[372652063,1752733868959,-660.68,0.00020875,2]
[372652064,1752733868968,-3000.0,0.00020912,2]
[372652065,1752733868978,-160.0,0.00020948,7]
[372652066,1752733868987,-153.0,0.00020959,2]
[372652067,1752733868996,-153.0,0.00020959,2]
[372652068,1752733869006,-153.0,0.00020959,2]
[372652069,1752733869016,-900.0,0.00020964,2]
[372652070,1752733869026,-5000.0,0.00020972,2]
[372652071,1752733869036,-800.0,0.0002098,2]
[372652072,1752733869046,-460.0,0.0002098,2]
[372652073,1752733869055,-223.682533,0.00020986,2]
[372652074,1752733869064,-667.7253088,0.00021,10]
[372652075,1752733869075,-45548.06309788,0.00021,3]
[372652076,1752733869224,-460.0,0.00018032,2]
[372652077,1752733869234,-460.0,0.00018133,2]
[372652078,1752733869243,-109.58621367,0.00018135,2]
[372652079,1752733869255,-350.6302174,0.00018135,2]
[372652080,1752733869265,-914.8489206,0.0001821,2]
[372652082,1752733878486,1111.7924294,0.00017093,2]
[372652083,1752733879998,355.312524,0.00017491,2]
[372652084,1752733880332,676.16285304,0.00017493,2]
[372652086,1752733892887,-1200.0,0.00018031,2]
[372652087,1752733892955,-460.0,0.00018032,2]
[372652088,1752733893028,-460.0,0.00018032,2]
[372652089,1752733893084,-2111.23,0.00018032,2]
[372652090,1752733893275,-1537.54,0.00018032,2]
[372652091,1752733893340,-460.0,0.00018032,2]
[372652092,1752733893420,-963.05,0.00018032,2]
[372652093,1752733893482,-460.0,0.00018032,2]
[372652094,1752733893543,-406.0158418,0.00018034,2]
[372652095,1752733893604,-460.0,0.00018034,2]
[372652096,1752733893665,-460.0,0.00018034,2]